{"text_format":"1","workbook":"xlsx","n_sheets":6,"sheets":["Comparador","Total","Transporte","Cemento+Energia","Energia ","Consumo Cemento"],"not_rendered":{"charts":3,"images":0,"macros":1,"external_links":1,"defined_names":0,"comments":0,"pivot_tables":0},"unopened":[],"bounds":{"document_bytes":16777216,"sheet_cells":100000,"rows_first":2000,"rows_last":500,"rows_between":2000,"halvings":0,"cell_chars":16384,"cell_head_chars":4096},"cells_cut":0,"cells_raw":0,"read":"whole","date_system":"1900"}

{"sheet":"Comparador","index":0,"n_rows":88,"n_cols":15,"rows_kept":88,"cut":false,"hidden":false,"merged":[]}
[]
[null,null,null,null,null,null,null," "]
[" ",null," ",null,null,null," "," "]
[]
[" ",null,null,null,null," ",null,"ESTUDIO ECOLOGIA : CICLO DE VIDA DE LA PLANTA DE CONCRETO : LCA:"]
[null,null,null,null,null," "," ","PARTE n°5 : LCA PARCIAL DE LA EMISION Y HUELLA CO2."]
[null,null,null,null,null," "," ","5.4. AMASADO + TRANSPORTE : comparación entre dos tipos de plantas."]
[null,null,null,null,null," "," ","EQUIPO FRANCES SA DE CV, Colima, 15 de Abril 2022."]
[null,null,null,null,null," "," "]
[null,null,null,null,null,"VOLUMEN M3 :",null,"ESCOGER TIPO DE PLANTA \"A\" de referencia :",null,"ESCOGER TIPO DE PLANTA \"B\" para comparar :",null,null,null,null," "]
[null,null,null,null,null,null,null,"SISTEMA DE AMASADO Y TRANSPORTE",null,"SISTEMA DE AMASADO Y TRANSPORTE"," "]
[null,null,null,null,null,100000," ","Mezclador Twin-shaft LIEBHERR con revolvedora normal chasis diesel",null,"Revolvedora normal sobre chasis diesel"," "," "]
[null,null,null,null,null,null,null,"ENERGIA AMASADO :",null,"ENERGIA AMASADO :"," ",null," "]
[null,null,null,null,null,null," ","Electricidad CFE",null,"Revolvedora chasis gas"," ","Chasis diesel"," "]
[null,null,null,null,null,null,null,"ENERGIA CARGA+PARADAS :",null,"ENERGIA CARGA+PARADAS :",null,null," "]
[null,null,null,null,null,null," ","Electricidad CFE",null,"Revolvedora chasis gas",null,"Chasis diesel"]
[null,null,null,null,null,null," ","ENERGIA TRANSPORTE ACTIVO :",null,"ENERGIA TRANSPORTE ACTIVO :"]
[null,null,null,null,null,null," ","Gas chasis"," ","Revolvedora chasis gas",null,"Chasis diesel"]
[null,null,null,null,null,null," "]
[null,null,null,null,null," "]
[null,null,null,null,null,"  ",null,"PLANTA ESCOGIDA",null,"PLANTA ESCOGIDA",null,"DIFERENCIA"]
[null,null,null,null,null,null," ","DE REFERENCIA \"A\""," ","PARA COMPARAR \"B\"",null,"\"B\" - \"A\""]
[null,null,null,null,null,null,null,"FASE 1 : AMASADO :",null,"FASE 1 : AMASADO :"]
[null,null,null,null,null,null,"Huella cemento :",18700400,null,21770000,null,{"$f":"+J24-H24","v":3069600},{"$f":"+L24/H24","v":0.16414622147119848}]
[null,null,null,null,null,null,"CO2 directo durante amasado :",0,null,30800,null,{"$f":"+J25-H25","v":30800},{"$f":"+L25/H25","v":{"$error":"#DIV/0!"}}]
[null,null,null,null,null,null,"Huella electricidad :",24600,null,0,null,-24600,{"$f":"+IFERROR(L26/H26,\" \")","v":-1}]
[null,null,null,null,null,null,"Total AMASADO :",{"$f":"+SUM(H24:H26)","v":18725000},null,{"$f":"+SUM(J24:J26)","v":21800800},null,3075800,0.16426168224299065]
[null,null,null,null,null,null,null,"FASE 2 : TRANSPORTE",null,"FASE 2 : TRANSPORTE"]
[null,null,null,null,null,null,"CO2 carga+paradas :",66000,null,66000,null,{"$f":"+J29-H29","v":0},{"$f":"+L29/H29","v":0}]
[null,null,null,null,null,null,"CO2 transporte activo :",330000,null,330000,null,0,0]
[null,null,null,null,null,null,"Total TRANSPORTE :",{"$f":"+H30+H29","v":396000},null,{"$f":"+J29+J30","v":396000},null,0,0]
[]
[null,null,null,null,null,null,"TOTAL AMASADO+TRANSPORTE :",{"$f":"+H31+H27","v":19121000},null,{"$f":"+J31+J27","v":22196800},null,{"$f":"+J33-H33","v":3075800},{"$f":"+L33/H33","v":0.16085978766800899}]
[]
[]
[null,null,null,null,null,null,"Cemento :",{"$f":"+H24","v":18700400},"Cemento :",{"$f":"+J24","v":21770000},"Cemento :",{"$f":"+L24","v":3069600}]
[null,null,null,null,null,null,"Amasado; CO2 directo",{"$f":"+H25","v":0},"Amasado; CO2 directo",{"$f":"+J25","v":30800},"Amasado; CO2 directo",{"$f":"+L25","v":30800}]
[null,null,null,null,null,null,"Amasado; electricidad",{"$f":"+H26","v":24600},"Amasado; electricidad",{"$f":"+J26","v":0},"Amasado; electricidad",{"$f":"+L26","v":-24600}]
[null,null,null,null,null,null,"Transporte paradas",{"$f":"+H29","v":66000},"Transporte paradas",{"$f":"+J29","v":66000},"Transporte paradas",{"$f":"+L29","v":0}]
[null,null,null,null,null,null,"Transporte activo",{"$f":"+H30","v":330000},"Transporte activo",{"$f":"+J30","v":330000},"Transporte activo",{"$f":"+L30","v":0}]
[]
[]
[]
[]
[]
[]
[]
[]
[]
[]
[null,null,null,null,null,null,null,"LISTAS DE CRITERIOS : A ESCONDER"]
[]
[null,null,null,null,null,null,null,"SISTEMA AMASADO :",null,"Revolvedora normal sobre chasis diesel"]
[null,null,null,null,null,null,null,"Revolvedora normal",null,"Revolvedora normal sobre chasis gas"]
[null,null,null,null,null,null,null,"Revolvedora eléctrica Hydrid",null,"Revolvedora sobre eléctrico chasis eléctrico"]
[null,null,null,null,null,null,null,"Revolvedora eléctrica Plug-in",null,"Revolvedora eléctrica Hybrid sobre chasis diesel"]
[null,null,null,null,null,null,null,"Revolvedora Tilt",null,"Revolvedora eléctrica Plug-in sobre chasis diesel"]
[null,null,null,null,null,null,null,"Revolvedora eléctrica",null,"Revolvedora eléctrica Hybrid sobre chasis gas"]
[null,null,null,null,null,null,null,"Mezclador Twin-shaft Otros"," ","Revolvedora eléctrica Plug-in sobre chasis gas"]
[null,null,null,null,null,null,null,"Mezclador Twin-shaft LIEBHERR"," ","Revolvedora eléctrica Hybrid sobre chasis eléctrico"]
[null,null,null,null,null,null,null,"Mezclador Ring-pan LIEBHERR"," ","Revolvedora eléctrica Plug-in sobre chasis eléctrico"]
[null,null,null,null,null,null,null,null,null,"Revolvedora Tilt con revolvedora normal chasis diesel"]
[null,null,null,null,null,null,null,"ENERGIA AMASADO :",null,"Revolvedora Tilt con revolvedora eléctrica Plug-in sobre chasis gas"]
[null,null,null,null,null,null,null,"Diesel chasis",null,"Revolvedora Tilt con revolvedora eléctrica Hybrid sobre chasis eléctrico"]
[null,null,null,null,null,null,null,"Gas chasis",null,"Mezclador Twin-shaft Otros con revolvedora normal chasis diesel"]
[null,null,null,null,null,null,null,"Electricidad chasis eléctrico",null,"Mezclador Twin-shaft Otros con revolvedora eléctrica Plug-in sobre chasis gas"]
[null,null,null,null,null,null,null,"Electricidad chasis diesel",null,"Mezclador Twin-shaft Otros con revolvedora eléctrica Hybrid sobre chasis eléctrico"]
[null,null,null,null,null,null,null,"Electricidad CFE",null,"Mezclador Twin-shaft LIEBHERR con revolvedora normal chasis diesel"]
[null,null,null,null,null,null,null,"Electricad chasis gas",null,"Mezclador Twin-shaft LIEBHERR con revolvedora eléctrica Plug-in sobre chasis gas"]
[null,null,null,null,null,null,null,null,null,"Mezclador Twin-shaft LIEBHERR con revolvedora eléctrica Hybrid sobre chasis eléctrico"]
[null,null,null,null,null,null,null,"ENERGIA CARGA+PARADAS :",null,"Mezclador Ring-pan LIEBHERR con revolvedora normal chasis diesel"]
[null,null,null,null,null,null,null,"Diesel chasis",null,"Mezclador Ring-pan LIEBHERR con revolvedora eléctrica Plug-in sobre chasis gas"]
[null,null,null,null,null,null,null,"Gas chasis",null,"Mezclador Ring-pan LIEBHERR con revolvedora eléctrica Hybrid sobre chasis eléctrico"]
[null,null,null,null,null,null,null,"Electricidad chasis eléctrico"]
[null,null,null,null,null,null,null,"Electricidad chasis diesel"]
[null,null,null,null,null,null,null,"Electricidad CFE"]
[null,null,null,null,null,null,null,"Electricidad chasis gas"]
[]
[null,null,null,null,null,null,null,"ENERGIA TRANSPORTE ACTIVO :"]
[null,null,null,null,null,null,null,"Diesel chasis"]
[null,null,null,null,null,null,null,"Gas chasis"]
[null,null,null,null,null,null,null,"Electricidad chasis eléctrico"]
[null,null,null,null,null,null,null,"Electricidad CFE"]
[]
[]
[]
[]
[null,null,null,null,null,null,null,null,null,"Electricidad CFE"]

{"sheet":"Total","index":1,"n_rows":52,"n_cols":22,"rows_kept":52,"cut":false,"hidden":true,"merged":[]}
[]
[null,null,null,"ESTUDIO ECOLOGIA : CICLO DE VIDA DE LA PLANTA DE CONCRETO."]
[null,null,null,"5. AMASADO MAS TRANSPORTE."]
[null,null,null,"5.2. HUELLA CO2 AMASADO MAS TRANSPORTE :"]
[null,null,null,"Solo el mezclado central tiene impacto significativo para bajar la huella CO2 y el chasis eléctrica es de evitar."]
[null,null,null,"Creado Colima, EQUIPO FRANCES SA DE CV, Abr. 9 2022. Actualizado Abr. 17 2022."]
[null,null,null,"Parámetros fijos : un solo concreto con 350 kg cemento/m3 (30 MPa), duración mezclado."]
[null,null,null,"Volumen :",{"$f":"Comparador!$F$12","v":100000}]
[null,null,null,"SISTEMA AMASADO","ENERGIA ","ENERGIA","ENERGIA","          AMASADO",null,null,"           TRANSPORTE",null,"          AMASADO",null,null,"           TRANSPORTE",null,"FACTOR","% FACTOR","% MEJORA VS","Ejemplo m3","Diferencia con"]
[null,null,null,null,"UTILIZADA ","UTILIZADA","UTILIZADA","CEMENTO","EMISION","HUELLA","PARADAS","ACTIVO","CEMENTO","EMISION","HUELLA","PARADAS","ACTIVO","AMASADO+","TRANSPORTE","REVOLVEDORA","concreto =","Revolvedora"]
[null,null,null,null,"AMASADO","TRANSPORTE PARADA","TRANSPORTE ACTIVO","kg CO2/m3","DIRECTA","ELECTRICAD","kg CO2/m3","kg CO2/m3","kg CO2/m3","DIRECTA","ELECTRICAD","kg CO2/m3","kg CO2/m3","TRANSPORTE","VS TOTAL","+CHASIS DIESEL",10000,"+Chasis diesel"]
[null,null,"Revolvedora normal sobre chasis diesel","Revolvedora normal","Diesel chasis",{"$f":"+E12","v":"Diesel chasis"},{"$f":"+E12","v":"Diesel chasis"},{"$f":"'Cemento+Energia'!H14","v":217.7},{"$f":"'Cemento+Energia'!I14","v":0.308},0,{"$f":"Transporte!J15","v":0.66},{"$f":"Transporte!H15","v":3.3},{"$f":"+H12*$E$8","v":21770000},{"$f":"+I12*$E$8","v":30800},0,66000,330000,{"$f":"+SUM(H12:L12)","v":221.96799999999999},{"$f":"+L12/R12","v":1.4867007856988395E-2},{"$f":"+(R12-$R$12)/$R$12","v":0},{"$f":"+R12*$U$11","v":2219680},{"$f":"+U12-U12","v":0}]
[null,null,"Revolvedora normal sobre chasis gas","Revolvedora normal","Gas chasis","Gas chasis",{"$f":"+E13","v":"Gas chasis"},{"$f":"'Cemento+Energia'!H15","v":217.7},{"$f":"'Cemento+Energia'!I15","v":0.24640000000000001},0,{"$f":"Transporte!J16","v":0.52800000000000002},{"$f":"Transporte!H16","v":2.64},{"$f":"+H13*$E$8","v":21770000},24640,0,52800,264000,{"$f":"+SUM(H13:L13)","v":221.11439999999996},{"$f":"+L13/R13","v":1.1939520899588631E-2},{"$f":"+(R13-$R$12)/$R$12","v":-3.8455993656744602E-3},{"$f":"+R13*$U$11","v":2211143.9999999995},{"$f":"+U13-$U$12","v":-8536.0000000004657}]
[null,null,"Revolvedora sobre eléctrico chasis eléctrico","Revolvedora normal","Electricidad chasis eléctrico","Electricidad chasis eléctrico",{"$f":"+E14","v":"Electricidad chasis eléctrico"},{"$f":"'Cemento+Energia'!H16","v":217.7},0,{"$f":"'Energia '!$I$14","v":0.504},{"$f":"Transporte!$K$17","v":2.7010000000000001},{"$f":"Transporte!$I$17","v":12.967000000000001},21770000,0,50400,270100,1296700,233.87199999999999,5.54448587261408E-2,{"$f":"+(R14-$R$12)/$R$12","v":5.3629351978663579E-2},2338720,{"$f":"+U14-$U$12","v":119040}]
[null,null,"Revolvedora eléctrica Hybrid sobre chasis diesel","Revolvedora eléctrica Hybrid","Electricidad chasis diesel","Electricidad chasis diesel","Diesel chasis",{"$f":"'Cemento+Energia'!H17","v":217.7},{"$f":"'Cemento+Energia'!I17","v":0.308},0,{"$f":"Transporte!$J$18","v":0.66},{"$f":"Transporte!$J$18","v":0.66},21770000,30800,0,66000,66000,219.32799999999997,3.0091917128683985E-3,-1.1893606285590783E-2,2193279.9999999995,-26400.000000000466]
[null,null,"Revolvedora eléctrica Plug-in sobre chasis diesel","Revolvedora eléctrica Plug-in","Electricidad CFE","Electricidad CFE","Diesel chasis",{"$f":"'Cemento+Energia'!H18","v":217.7},0,{"$f":"'Energia '!$I$16","v":0.20200000000000001},{"$f":"Transporte!$K$19","v":0.432},{"$f":"Transporte!$H$19","v":3.3},21770000,0,20200,43200,330000,221.63399999999999,1.4889412274290047E-2,-1.5047214012830822E-3,2216340,-3340]
[null,null,"Revolvedora eléctrica Hybrid sobre chasis gas","Revolvedora eléctrica Hydrid","Electricidad chasis gas","Electricidad chasis gas","Gas chasis",{"$f":"'Cemento+Energia'!H19","v":217.7},{"$f":"'Cemento+Energia'!I19","v":0.24640000000000001},0,{"$f":"Transporte!$J$20","v":0.52800000000000002},{"$f":"Transporte!$H$20","v":2.64},21770000,24640,0,52800,264000,221.11439999999996,1.1939520899588631E-2,-3.8455993656744602E-3,2211143.9999999995,-8536.0000000004657]
[null,null,"Revolvedora eléctrica Plug-in sobre chasis gas","Revolvedora eléctrica Plug-in","Electricidad CFE","Electricidad CFE","Gas chasis",{"$f":"'Cemento+Energia'!H20","v":217.7},0,{"$f":"'Energia '!I18","v":0.20200000000000001},{"$f":"Transporte!$K$21","v":0.432},{"$f":"Transporte!$H$21","v":2.64},21770000,0,20200,43200,264000,220.97399999999996,1.1947106899454238E-2,-4.4781229726808744E-3,2209739.9999999995,-9940.0000000004657]
[null,null,"Revolvedora eléctrica Hybrid sobre chasis eléctrico","Revolvedora eléctrica Hybrid","Electricidad chasis eléctrico","Electricidad chasis eléctrico","Electricidad CFE",{"$f":"'Cemento+Energia'!H21","v":217.7},0,{"$f":"'Energia '!I19","v":0.504},{"$f":"Transporte!$K$22","v":2.7010000000000001},{"$f":"Transporte!$I$22","v":12.967000000000001},21770000,0,50400,270100,1296700,233.87199999999999,5.54448587261408E-2,5.3629351978663579E-2,2338720,119040]
[null,null,"Revolvedora eléctrica Plug-in sobre chasis eléctrico","Revolvedora eléctrica Plug-in","Electricidad CFE","Electricidad CFE",{"$f":"+E20","v":"Electricidad CFE"},{"$f":"'Cemento+Energia'!H22","v":217.7},0,{"$f":"'Energia '!I20","v":0.20200000000000001},{"$f":"Transporte!$K$23","v":0.432},{"$f":"Transporte!$I$23","v":12.967000000000001},21770000,0,20200,43200,1296700,231.30099999999999,5.6061149757242731E-2,4.2046601311900807E-2,2313010,93330]
[null,null,"Revolvedora Tilt con revolvedora normal chasis diesel","Revolvedora Tilt",{"$f":"+E12","v":"Diesel chasis"},{"$f":"+F12","v":"Diesel chasis"},{"$f":"+G12","v":"Diesel chasis"},{"$f":"'Cemento+Energia'!H23","v":213.346},0,{"$f":"'Energia '!$I$21","v":0.68600000000000005},{"$f":"Transporte!$J$15","v":0.66},{"$f":"+L12","v":3.3},21334600,0,68600,66000,330000,217.99200000000002,{"$f":"+L21/R21","v":1.5138170208081029E-2},-1.7912491890722856E-2,2179920,-39760]
[null,null,"Revolvedora Tilt con revolvedora eléctrica Plug-in sobre chasis gas","Revolvedora Tilt","Electricidad CFE",{"$f":"+F18","v":"Electricidad CFE"},{"$f":"+G18","v":"Gas chasis"},{"$f":"'Cemento+Energia'!H23","v":213.346},0,{"$f":"'Energia '!$I$21","v":0.68600000000000005},{"$f":"Transporte!$K$21","v":0.432},{"$f":"Transporte!$H$21","v":2.64},21334600,0,68600,43200,264000,217.10399999999998,1.2160070749502544E-2,-2.1913068550421702E-2,2171040,-48640]
[null,null,"Revolvedora Tilt con revolvedora eléctrica Hybrid sobre chasis eléctrico","Revolvedora Tilt","Electricidad CFE",{"$f":"+F19","v":"Electricidad chasis eléctrico"},{"$f":"+G19","v":"Electricidad CFE"},{"$f":"'Cemento+Energia'!H23","v":213.346},0,{"$f":"'Energia '!$I$21","v":0.68600000000000005},{"$f":"Transporte!$K$22","v":2.7010000000000001},{"$f":"Transporte!$I$22","v":12.967000000000001},21334600,0,68600,270100,1296700,229.70000000000002,5.6451893774488462E-2,3.4833849924313542E-2,2297000,77320]
[null,null,"Mezclador Twin-shaft Otros con revolvedora normal chasis diesel","Mezclador Twin-shaft Otros",{"$f":"+E12","v":"Diesel chasis"},{"$f":"+F12","v":"Diesel chasis"},{"$f":"+G12","v":"Diesel chasis"},{"$f":"'Cemento+Energia'!H24","v":187.00399999999999},0,{"$f":"'[1]Energia '!$I$22","v":0.25900000000000001},{"$f":"+K21","v":0.66},{"$f":"+L21","v":3.3},18700400,0,25900,66000,330000,191.22299999999998,1.7257338290895971E-2,-0.13851095653427523,1912229.9999999998,-307450.00000000023]
[null,null,"Mezclador Twin-shaft Otros con revolvedora eléctrica Plug-in sobre chasis gas","Mezclador Twin-shaft Otros","Electricidad CFE",{"$f":"+F18","v":"Electricidad CFE"},{"$f":"+G18","v":"Gas chasis"},{"$f":"'Cemento+Energia'!H24","v":187.00399999999999},0,{"$f":"'[1]Energia '!$I$22","v":0.25900000000000001},{"$f":"+K22","v":0.432},2.64,18700400,0,25900,43200,264000,190.33499999999995,1.3870281346047762E-2,-0.14251153319397408,1903349.9999999995,-316330.00000000047]
[null,null,"Mezclador Twin-shaft Otros con revolvedora eléctrica Hybrid sobre chasis eléctrico","Mezclador Twin-shaft Otros","Electricidad CFE",{"$f":"+F19","v":"Electricidad chasis eléctrico"},{"$f":"+G19","v":"Electricidad CFE"},{"$f":"'Cemento+Energia'!H24","v":187.00399999999999},0,{"$f":"'[1]Energia '!$I$22","v":0.25900000000000001},{"$f":"+K23","v":2.7010000000000001},12.967000000000001,18700400,0,25900,270100,1296700,202.93099999999998,6.3898566507827798E-2,-8.5764614719238838E-2,2029309.9999999998,-190370.00000000023]
[null,null,"Mezclador Twin-shaft LIEBHERR con revolvedora normal chasis diesel","Mezclador Twin-shaft LIEBHERR",{"$f":"+E12","v":"Diesel chasis"},{"$f":"+F12","v":"Diesel chasis"},{"$f":"+G12","v":"Diesel chasis"},{"$f":"'Cemento+Energia'!H25","v":187.00399999999999},0,{"$f":"'[1]Energia '!$I$23","v":0.246},{"$f":"+K21","v":0.66},{"$f":"+L21","v":3.3},18700400,0,24600,66000,330000,191.21,1.7258511584122168E-2,-0.13856952353492388,1912100,-307580]
[null,null,"Mezclador Twin-shaft LIEBHERR con revolvedora eléctrica Plug-in sobre chasis gas","Mezclador Twin-shaft LIEBHERR","Electricidad CFE",{"$f":"+F18","v":"Electricidad CFE"},{"$f":"+G18","v":"Gas chasis"},{"$f":"'Cemento+Energia'!H25","v":187.00399999999999},0,{"$f":"'[1]Energia '!$I$23","v":0.246},{"$f":"+K22","v":0.432},2.64,18700400,{"$f":"+I28*$E$8","v":0},{"$f":"+J28*$E$8","v":24600},{"$f":"+K28*$E$8","v":43200},{"$f":"+L28*$E$8","v":264000},190.32199999999997,1.3871228759680965E-2,-0.14257010019462271,1903219.9999999998,-316460.00000000023]
[null,null,"Mezclador Twin-shaft LIEBHERR con revolvedora eléctrica Hybrid sobre chasis eléctrico","Mezclador Twin-shaft LIEBHERR","Electricidad CFE",{"$f":"+F19","v":"Electricidad chasis eléctrico"},{"$f":"+G19","v":"Electricidad CFE"},{"$f":"'Cemento+Energia'!H25","v":187.00399999999999},0,{"$f":"'[1]Energia '!$I$23","v":0.246},{"$f":"+K23","v":2.7010000000000001},12.967000000000001,18700400,0,24600,270100,1296700,202.91800000000001,6.3902660187859131E-2,-8.5823181719887481E-2,2029180,-190500]
[null,null,"Mezclador Ring-pan LIEBHERR con revolvedora normal chasis diesel","Mezclador Ring-pan LIEBHERR",{"$f":"+E12","v":"Diesel chasis"},{"$f":"+F12","v":"Diesel chasis"},{"$f":"+G12","v":"Diesel chasis"},{"$f":"'Cemento+Energia'!H26","v":177.654},0,{"$f":"'[1]Energia '!$I$24","v":0.34399999999999997},{"$f":"+K21","v":0.66},{"$f":"+L21","v":3.3},17765400,0,34400,66000,330000,181.958,1.813605337495466E-2,-0.18025120738124412,1819580,-400100]
[null,null,"Mezclador Ring-pan LIEBHERR con revolvedora eléctrica Plug-in sobre chasis gas","Mezclador Ring-pan LIEBHERR","Electricidad CFE",{"$f":"+F18","v":"Electricidad CFE"},{"$f":"+G18","v":"Gas chasis"},{"$f":"'Cemento+Energia'!H26","v":177.654},0,{"$f":"'[1]Energia '!$I$24","v":0.34399999999999997},{"$f":"+K22","v":0.432},2.64,17765400,0,34400,43200,264000,181.06999999999996,1.4579996686364394E-2,-0.18425178404094295,1810699.9999999995,-408980.00000000047]
[null,null,"Mezclador Ring-pan LIEBHERR con revolvedora eléctrica Hybrid sobre chasis eléctrico","Mezclador Ring-pan LIEBHERR","Electricidad CFE",{"$f":"+F19","v":"Electricidad chasis eléctrico"},{"$f":"+G19","v":"Electricidad CFE"},{"$f":"'Cemento+Energia'!H26","v":177.654},0,{"$f":"'[1]Energia '!$I$24","v":0.34399999999999997},{"$f":"+K23","v":2.7010000000000001},12.967000000000001,17765400,0,34400,270100,1296700,193.666,6.6955480053287622E-2,-0.12750486556620771,1936660,-283020]
[null,null,null,null,null,null,null,null,null,null,null,null,null,null,null,null,null,"Promedio",{"$f":"+SUM(S12:S32)/21","v":2.9001089489305482E-2}]
[null,null,null,"1. Si se toma en cuenta el sistema \"clasico\" de mezclar con la revolvedora, hay solo dos categorias de factor cemento aplaste casi todo el impacto del cemento."]
[null,null,null,"porque el consumo de cemento es tan alto que aplasta las emisiones directas o indirectas (huella) del sistema de transporte."]
[null,null,null,null,null,"Intensidad huella",null,"Explicación :"]
[null,null,null,"Mezclado en Revolvedora + Chasis eléctrico",null,230,null,"Eficiencia mecánica baja y factor electricidad CFE muy alto."]
[null,null,null,"Mezclado en Revolvedora +Otros chasis",null,220,null,"La revolvedora eléctrica no compensa el chasis diesel"]
[null,null,null,"2. El transporte solo representa menos 2 % de las emisiones, salvo para el Chasis eléctrico."]
[null,null,null,"3. Para la Revolvedora Tilt y el Mezclado central hemos aplicado los siguientes transportes :"]
[null,null,null,"- El transporte más \"Clásico\"; Revoledora sobre Chasis diesel"]
[null,null,null,"- El más \"Clásico\"; Revoledora que mezcla sobre chasis diesel"]
[null,null,null,"- El peor ; Revolvedora eléctrica Hybrid sobre Chasis."]
[null,null,null,"3. Para la Revolvedora Tilt y el Mezclado central, los resultados son, en comparación el sistema Relvodora que mezcla sobre Chasis diesel"]
[null,null,null,"- El Tilt no mejora casi nada con menos de 0.1%."]
[null,null,null,"- El Twin-shaft casi mejora de 15 %, lo que mucho. "]
[null,null,null,"- El Ring-pan LIEBHERR casi mejora de 20 %, lo que sobresaliente."]
[null,null,null," "]
[null,null,null," "]
[null,null,null," "]
[null,null,null," "]
[null,null,null," "]

{"sheet":"Transporte","index":2,"n_rows":49,"n_cols":12,"rows_kept":49,"cut":false,"hidden":true,"merged":[]}
[]
[]
[]
[null,null,null,"ESTUDIO ECOLOGIA : CICLO DE VIDA DE LA PLANTA DE CONCRETO."]
[null,null,null,"2. CO2 DURANTE EL TRANSPORTE."]
[null,null,null,"2.2. TRANSPORTE ACTIVO Y PARADAS : evitar el Chasis eléctrica y cualquier otra combinación no hace gran diferencia "]
[null,null,null,null,null,"         sobre la emisión transporte."]
[null,null,null,"Colima, EQUIPO FRANCES SA DE CV, crearo Abr. 9 2022. Actualizado Abr. 11 2022."]
[]
[null,null,null,"Parámetros fijos : un solo concreto con 350 kg cemento/m3 (30 MPa), duración mezclado."]
[]
["SISTEMA AMASADO","SOPORTE SISTEMA","ENERGIA","SISTEMA TRANSPORTE ","SOPORTE DEL","                              ENERGIA UTILIZADA",null,"TRANSPORTE ACTIVO",null,"          PARADAS",null,"FACTOR"]
[null,"DEL MEZCLADO","UTILIZADA","REVOLVEDORA","SISTEMA","TRANSPORTE ACTIVO","PARADAS","DIRECTA","HUELLA","DIRECTA","HUELLA","TRANSPORTE"]
[null,null,null,null,"DEL MEZCLADO",null,null,"Diesel, gas","Electricidad","Diesel, gas","Electricidad","TOTAL"]
["Revolvedora normal","Chasis diesel ","Diesel chasis","Revolvedora normal","Chasis diesel ","Diesel","Diesel ",3.3,null,0.66,null,{"$f":"+SUM(H15:K15)","v":3.96}]
["Revolvedora normal","Chasis gas","Gas  chasis","Revolvedora normal","Chasis gas","Gas","Gas",{"$f":"+H15*0.8","v":2.64},null,{"$f":"+J15*0.8","v":0.52800000000000002},null,{"$f":"+SUM(H16:K16)","v":3.1680000000000001}]
["Revolvedora normal","Chasis eléctrico","Electricidad chasis eléctrico","Revolvedora normal","Chasis eléctrico","Electricidad chasis eléctrico","Electricidad chasis eléc.",null,12.967000000000001," ",2.7010000000000001,15.668000000000001]
["Revolvedora eléctrica Hybrid","Chasis diesel ","Electricidad chasis diesel","Revolvedora eléctrica Hybrid","Chasis diesel ","Diesel ","Diesel ",{"$f":"+H15","v":3.3},null,{"$f":"+J15","v":0.66},null,3.96]
["Revolvedora eléctrica Plug-in","Chasis diesel ","Electricidad CFE","Revolvedora eléctrica Plug-in","Chasis diesel ","Diesel ","Electricidad CFE",{"$f":"+H15","v":3.3}," ",null,0.432,3.7319999999999998]
["Revolvedora eléctrica Hydrid","Chasis gas","Electricidad chasis gas","Revolvedora eléctrica Hydrid","Chasis gas","Gas","Gas",{"$f":"+H16","v":2.64},null,{"$f":"+J16","v":0.52800000000000002},null,3.1680000000000001]
["Revolvedora eléctrica Plug-in","Chasis gas","Electricidad CFE","Revolvedora eléctrica Plug-in","Chasis gas","Gas","Electricidad CFE",{"$f":"+H16","v":2.64},{"$f":"+I19","v":" "},null,{"$f":"+K19","v":0.432},3.0720000000000001]
["Revolvedora eléctrica Hybrid","Chasis eléctrico","Electricidad chasis eléctrico","Revolvedora eléctrica Hybrid","Chasis eléctrico","Electricidad chasis eléctrico","Electricidad chasis eléc,",null,{"$f":"+I17","v":12.967000000000001},null,2.7010000000000001,15.668000000000001]
["Revolvedora eléctrica Plug-in","Chasis eléctrico","Electricidad CFE","Revolvedora eléctrica Plug-in","Chasis eléctrico","Electricidad chasis eléctrico","Electricidad CFE",null,12.967000000000001,null,{"$f":"+K19","v":0.432},13.399000000000001]
["Revolvedora Tilt","Planta dosificadora","Electricidad CFE","Revolvedora normal","Planta dosificadora","Puede aplicar toda la lista de arriba",null," ",null," ",null," "]
["Mezclador Twin-shaft Otros","Planta mezclador central","Electricidad CFE","Mezclador Twin-shaft Otros","Planta mezclador central","Puede aplicar toda la lista de arriba"]
["Mezclador Twin-shaft LIEBHERR","Planta mezclador central","Electricidad CFE","Mezclador Twin-shaft LIEBHERR","Planta mezclador central","Puede aplicar toda la lista de arriba"]
["Mezclador Ring-pan LIEBHERR","Planta mezclador central","Electricidad CFE","Mezclador Ring-pan LIEBHERR","Planta mezclador central","Puede aplicar toda la lista de arriba"]
[]
[null,null,null,null,"Hay tres categorias de equipo de amasado en cuanto a emsión de CO2 durante el mezclado :"]
[null,null,null,null,null,null,"Intensidad huella","Explicación :"]
[null,null,null,null,"Todas las opciones con el hasis eléctrico",null,"MUY ALTA","Eficiencia mecánica baja y factor electricidad CFE muy alto."]
[null,null,null,null,"Revolvedora normal y eléctrica chasis diesel ",null,"MEDIANO","La revolvedora eléctrica no compensa el chasis diesel"]
[null,null,null,null,"Revolvedora eléctrico sobre chasis gas; mejor opción",null,"BAJO","La revolvedora eléctrica potencia el chasis gas"]
[null,null,null,null,"Revolvedora Tilt o Mezclado Central; pueden aplicar todos los sistemas de transporte mencionados."]
[]
[]
[null,null,null,null,null," "," "," "]
[null,null,null,null,null," "," "," "]
[null,null,null,null,null," "," "," "]
[null,null,null,null,null,null,null," "]
[null,null,null,null,null,null,null," "]
[]
[null,null,null,null,null,null,null," "]
[null,null,null,null,null,null,null," "]
[null,null,null,null,null,null,null," "]
[null,null,null,null,null,null,null," "]
[null,null,null,null,null,null,null,"  "]
[]
[null,null,null,null,null,null,null," "]

{"sheet":"Cemento+Energia","index":3,"n_rows":63,"n_cols":14,"rows_kept":63,"cut":false,"hidden":true,"merged":[]}
[]
[null,null,null,null,"ESTUDIO ECOLOGIA : CICLO DE VIDA DE LA PLANTA DE CONCRETO."]
[null,null,null,null,"1. CO2 DURANTE EL MEZCLADO."]
[null,null,null,null,"1.4. CEMENTO + ENERGIA UTILIZADA : 1.4.2. Huella CO2 según el sistema de amasado."]
[null,null,null,null,"La huella del consumo el cemento explica 99% de la huella de la fase amasado,"]
[null,null,null,null," y solo el mezclador la puede bajar."]
[null,null,null,null,"Creado Colima, EQUIPO FRANCES SA DE CV, Abr. 9 2022. Actualizado Abr. 11 2022."]
[]
[null,null,null,null,"Parámetros fijos : un solo concreto con 350 kg cemento/m3 (30 MPa), duración mezclado."]
[null,null,null," ",null,null,null,null," "]
[null,null,null,"Duración","SISTEMA AMASADO","SOPORTE SISTEMA","ENERGIA","FACTOR","FACTOR","FACTOR","% FACTOR","Ejemplo m3","Cambio vs"]
[null,null,null,"mezclado",null,"DEL MEZCLADO","UTILIZADA","CEMENTO","ENERGIA","AMASADO","SISTEMA VS","concreto =","revolvedora"]
[null,null,null,null,null,null,null,"kg CO2/m3","kg CO2/m3","kg CO2/m3","CEMENTO",10000,"norma"]
[null,null,null,"7 min","Revolvedora normal","Chasis diesel ","Diesel chasis",{"$f":"'Consumo Cemento'!H12","v":217.7},{"$f":"'Energia '!J12","v":0.308},{"$f":"+H14+I14","v":218.00799999999998},{"$f":"+I14/J14","v":1.4127921911122529E-3},{"$f":"+J14*$L$13","v":2180080},{"$f":"+(I14-$I$14)/$I$14","v":0}]
[null,null,null,"7 min","Revolvedora normal","Chasis gas","Gas  chasis",{"$f":"'Consumo Cemento'!H13","v":217.7},{"$f":"'Energia '!J13","v":0.24640000000000001},{"$f":"+H15+I15","v":217.94639999999998},{"$f":"+I15/J15","v":1.1305532002363885E-3},{"$f":"+J15*$L$13","v":2179464},{"$f":"+(L15-$L$14)/$L$14","v":-2.8255843822245054E-4}]
[null,null,null,"7 min","Revolvedora normal","Chasis eléctrico","Electricidad chasis eléc.",{"$f":"'Consumo Cemento'!H14","v":217.7},{"$f":"'Energia '!$J$14","v":0.504},218.20399999999998,2.3097651738739895E-3,2182040,{"$f":"+(L16-$L$14)/$L$14","v":8.9904957616234263E-4}]
[null,null,null,"7 min","Revolvedora eléctrica Hybrid","Chasis diesel ","Electricidad chasis diesel",{"$f":"'Consumo Cemento'!H15","v":217.7},{"$f":"'Energia '!J15","v":0.308},218.00799999999998,1.4127921911122529E-3,2180080,0]
[null,null,null,"7 min","Revolvedora eléctrica Plug-in","Chasis diesel ","Electricidad CFE",{"$f":"'Consumo Cemento'!H16","v":217.7},{"$f":"'Energia '!J16","v":0.20200000000000001},217.90199999999999,9.2702223935530663E-4,2179020,-4.8622068914902207E-4]
[null,null,null,"7 min","Revolvedora eléctrica Hydrid","Chasis gas","Electricidad chasis gas",{"$f":"'Consumo Cemento'!H17","v":217.7},{"$f":"'Energia '!J17","v":0.24640000000000001},217.94639999999998,1.1305532002363885E-3,2179464,-2.8255843822245054E-4]
[null,null,null,"7 min","Revolvedora eléctrica Plug-in","Chasis gas","Electricidad CFE",{"$f":"'Consumo Cemento'!H18","v":217.7},{"$f":"'Energia '!J18","v":0.20200000000000001},217.90199999999999,9.2702223935530663E-4,2179020,-4.8622068914902207E-4]
[null,null,null,"7 min","Revolvedora eléctrica Hybrid","Chasis eléctrico","Electricidad chasis eléc.",{"$f":"'Consumo Cemento'!H19","v":217.7},{"$f":"'Energia '!J19","v":0.504},218.20399999999998,2.3097651738739895E-3,2182040,8.9904957616234263E-4]
[null,null,null,"7 min","Revolvedora eléctrica Plug-in","Chasis eléctrico","Electricidad CFE",{"$f":"'Consumo Cemento'!H20","v":217.7},{"$f":"'Energia '!J20","v":0.20200000000000001},217.90199999999999,9.2702223935530663E-4,2179020,-4.8622068914902207E-4]
[null,null,null,"5 min","Revolvedora Tilt","Planta dosificadora","Electricidad CFE",{"$f":"'Consumo Cemento'!H21","v":213.346},{"$f":"'Energia '!J21","v":0.68600000000000005},214.03200000000001,3.205128205128205E-3,2140320,-1.8237862830721808E-2," "]
[null,null,null,"1 min","Mezclador Twin-shaft Otros","Planta mezclador central","Electricidad CFE",{"$f":"'Consumo Cemento'!H22","v":187.00399999999999},{"$f":"'Energia '!J22","v":0.25900000000000001},187.26299999999998,1.3830815484105244E-3,1872629.9999999998,-0.1410269347913839]
[null,null,null,"0.95 min","Mezclador Twin-shaft LIEBHERR","Planta mezclador central","Electricidad CFE",{"$f":"'Consumo Cemento'!H23","v":187.00399999999999},{"$f":"'Energia '!J23","v":0.246},187.25,1.3137516688918557E-3,1872500,-0.14108656563061905]
[null,null,null,"0.95 min","Mezclador Ring-pan LIEBHERR","Planta mezclador central","Electricidad CFE",{"$f":"'Consumo Cemento'!H24","v":177.654},{"$f":"'Energia '!J24","v":0.34399999999999997},177.99799999999999,1.9326059843369026E-3,1779980,-0.18352537521558843]
[null,null,null,null,null,null,null,null,"Promedio",{"$f":"+SUM(J14:J26)/13","v":209.88967692307691},{"$f":"+SUM(K14:K26)/13","v":1.5632196350214361E-3}," "]
[null,null,null,null,"1. El factor de consumo de cemento aplasta literalmente el factor energia de amasado; que vale solo 0.16 % del factor total ¡ :"]
[null,null,null,null,"En todas las situaciones, el factor energia apenas explica 0,20 % del factor total (con excepción de la Revolvedora Tilt con 0.32%)."]
[null,null,null,null,"2. No hay impacto significativo usar un equipo de gas o eléctrico para mezclar."]
[null,null,null,null,"Se explica porque cual sea el sistema y energia basado en amasar con revolvedora, no mejora nada en la hidratación del cemento."]
[null,null,null,null,"La Revolvedora Tilt a pesar de mejorar algo en la hidratación lo cancela por parte por un consumo alto de electricidad."]
[null,null,null,null,"3. Solo el Mezclado Central con un mezclador que aplica una fuerza eficiente y dinámica permite ahorrar el cemento."]
[]
[null,null,null,null,"4. Hay cuatro categorias de equipo de amasado en cuanto a emsión de CO2 durante el mezclado :"]
[null,null,null,null,null,null,"Intensidad huella :","Explicación :"]
[null,null,null,null,"Revolvedora normal y eléctrica Hybrid chasis eléctrico",null,"MUY ALTA","Elimina toda idea de querer seguir mezclando con revolvedora "]
[null,null,null,null,null,null,null,"si se adquiere un equipo 100% eléctrico."]
[null,null,null,null,"Revolvedora normal y eléctrica chasis diesel o gas",null,"MUY ALTA muy poco menos","También, elimina la idea seguir mezclando con revolvedora eléctrica "]
[null,null,null,null,null,null,null,"si se conserva un chasis \"clásico\"."]
[null,null,null,null,"Mezclador Twin-shaft",null,"ALTA Bajada significativa","La mejora en la activación del cemento es muy interesante y"]
[null,null,null,null,null,null,null,"aplica casi a 100% sobre la huella CO2 total."]
[null,null,null,null,"Mezclador Ring-pan LIEBHERR",null,"MEDIANA Bajada fuerte","El Ring-pan LIEBHERR, mezclador más eficiente actual."]
[null,null,null,null,"= Herramienta ideal para mezclar.",null,"Ver Estudio Mezclado Central;  Tesis J. Moreno, Ecole Central Nantes, "]
[null,null,null,null,null,null,"France, que compara el Twin-shaft LIEBHERR y el Ring-pan LIEBHERR."]
[null,null,null,null," ",null,"Empresa BTL Angers, France"]
[null,null,null,null," "]
[null,null,null,null," "]
[null,null,null,null," "]
[null,null,null,null," "]
[null,null,null,null," "]
[null,null,null," "," "," "," ",null," "]
[null,null,null," "," "]
[null,null,null,null," "]
[null,null,null,null," ",null,null,null," "]
[null,null,null,null," "]
[null,null,null,null," "]
[null,null,null,null," "]
[null,null,null,null," "]
[null,null,null,null," "]
[null,null,null,null," "]
[null,null,null,null," "]
[null,null,null,null," ",null,null,null," "]

{"sheet":"Energia ","index":4,"n_rows":67,"n_cols":15,"rows_kept":67,"cut":false,"hidden":true,"merged":[]}
[]
[null,null,null,null,"ESTUDIO ECOLOGIA : CICLO DE VIDA DE LA PLANTA DE CONCRETO."]
[null,null,null,null,"1. CO2 DURANTE EL MEZCLADO."]
[null,null,null,null,"1.3. ENERGIA UTILIZADA : 1.3.1. Huella CO2 según el sistema de amasado."]
[null,null,null,null,"La emisión directa de la revolvedora y la huella del mezclador son del mismo orden, solo Tilt tiene huella en exceso."]
[null,null,null,null,"Creado Colima, EQUIPO FRANCES SA DE CV, Abr. 9 2022. Actualizado Abr. 17 2022."]
[null,null,null,null,"Parámetros fijos : un solo concreto con 350 kg cemento/m3 (30 MPa), duración mezclado."]
[null,null,null," ",null,null,null,null,null," "]
[null,null,null,"Duración","SISTEMA AMASADO","SOPORTE SISTEMA","ENERGIA","           TIPO DE EMISION",null,"FACTOR","Ejemplo m3","Ejemplo m3","Cambio vs"]
[null,null,null,"mezclado",null,"DEL MEZCLADO","UTILIZADA","DIRECT","HUELLA","EMISION","concreto =","concreto =","revolvedora"]
[null,null,null,null,null,null,null,"Diesel o gas","Electricidad","Kg CO2/m3 ",10000,50000,"norma"]
[null,null,null,"7 min","Revolvedora normal","Chasis diesel ","Diesel chasis",0.308,null,{"$f":"++H12+I12","v":0.308},{"$f":"+J12*$K$11","v":3080},{"$f":"+J12*$L$11","v":15400},{"$f":"+(J12-$J$12)/$J$12","v":0}]
[null,null,null,"7 min","Revolvedora normal","Chasis gas","Gas  chasis",{"$f":"+H12*0.8","v":0.24640000000000001},null,{"$f":"++H13+I13","v":0.24640000000000001},{"$f":"+J13*$K$11","v":2464},{"$f":"+J13*$L$11","v":12320},-0.19999999999999996]
[null,null,null,"7 min","Revolvedora normal","Chasis eléctrico","Electricidad chasis eléctrico",null,0.504,0.504,5040,25200,0.63636363636363635,null,0.504]
[null,null,null,"7 min","Revolvedora eléctrica Hybrid","Chasis diesel ","Electricidad chasis diesel",0.308,null,0.308,3080,15400,0]
[null,null,null,"7 min","Revolvedora eléctrica Plug-in","Chasis diesel ","Electricidad CFE",null,0.20200000000000001,0.20200000000000001,2020.0000000000002,10100,-0.3441558441558441]
[null,null,null,"7 min","Revolvedora eléctrica Hydrid","Chasis gas","Electricidad chasis gas",{"$f":"+H13","v":0.24640000000000001},null,0.24640000000000001,2464,12320,-0.19999999999999996]
[null,null,null,"7 min","Revolvedora eléctrica Plug-in","Chasis gas","Electricidad CFE",null,{"$f":"+I16","v":0.20200000000000001},0.20200000000000001,2020.0000000000002,10100,-0.3441558441558441]
[null,null,null,"7 min","Revolvedora eléctrica Hybrid","Chasis eléctrico","Electricidad chasis eléctrico",null,{"$f":"+I14","v":0.504},0.504,5040,25200,0.63636363636363635]
[null,null,null,"7 min","Revolvedora eléctrica Plug-in","Chasis eléctrico","Electricidad CFE",null,{"$f":"+I16","v":0.20200000000000001},0.20200000000000001,2020.0000000000002,10100,-0.3441558441558441]
[null,null,null,"5 min","Revolvedora Tilt","Planta dosificadora","Electricidad CFE",null,0.68600000000000005,{"$f":"+H21+I21","v":0.68600000000000005},6860.0000000000009,34300,1.2272727272727275]
[null,null,null,"1 min","Mezclador Twin-shaft Otros","Planta mezclador central","Electricidad CFE",null,0.25900000000000001,0.25900000000000001,2590,12950,{"$f":"+(J22-$J$12)/$J$12","v":-0.15909090909090906}]
[null,null,null,"0.95 min","Mezclador Twin-shaft LIEBHERR","Planta mezclador central","Electricidad CFE",null,0.246,0.246,2460,12300,{"$f":"+(J23-$J$12)/$J$12","v":-0.20129870129870131}]
[null,null,null,"0.95 min","Mezclador Ring-pan LIEBHERR","Planta mezclador central","Electricidad CFE",null,0.34399999999999997,0.34399999999999997,3439.9999999999995,17200,0.11688311688311681]
[]
[null,null,null,null,"En cuanto a energia, hay tres categorias de equipo de amasado :"]
[null,null,null,null,null,"Intensidad huella","Explicación :"]
[null,null,null,null,"Revolvedora Tilt Electricidad","ALTA","Eficiencia enérgética muy baja de 8 %."]
[null,null,null,null,"Chasis eléctrico","MEDIANA ","Eficiencia mecánica baja y factor electricidad CFE muy alto."]
[null,null,null,null,"Diesel, gas y Mezclador","BAJA","El mezclador \"emite\" más porque también aplica más energia."]
[null,null,null,null,null,"Ver Estudio Mezclado Central Ficha 3.13.1. Sistema amasado : energia aplicada."]
[]
[null,null,null,null,"Resumen por tipo de energia para mezclar :"]
[null,null,null,null,"´- Diesel y gas : coeficiente bajo porque a pesar del factor alto de 2.64 kgCO2/litro diesel, el camión consume poco por tiempo, unos 8 litros/hora."]
[null,null,null,null,"´- El mezclador consume más energia en Joule/m3, lo que explica su eficiencia mayor en hidratar el cemento y hacer concreto más homogeneo."]
[null,null,null,null,"Pero el Twin-shaft aún emite menos que la Revolvedora diesel."]
[null,null,null,null,"´- La huella de la electricidad del chasis eléctrico es muy superior a la huella del diesel quemado por el chasis tradicional."]
[null,null,null,null,"´- La revolvedora Tilt padece de una potencia excesiva, de una eficiencia muy baja y de la potencia alta de motor eléctrica que tiene que mezclar "]
[null,null,null," ","y descargar su olla."," "," ",null,null," "]
[null,null,null," ","Porque la revolvedora eléctrica con electricidad CFE es eficiente y la revolvedora con electricidad del chasis eléctrico no ?"]
[null,null,null,null,"- El motor eléctrico de la revolvedora eléctrico es de sol 28 KW y bastante eficiente con unos 37 %."]
[null,null,null,null,"Entonces, si esta utilizado en Plug-in con electricidad CFE, y a pesar de que esta electricad es bastante \"sucia\", emitirá menos que el motor diesel.",null,null,null,null," "]
[null,null,null,null,"´- El motor eléctrico del chasis eléctrico que se piensa instalar para montar una olla de 8 m3 es de entre 350 kW y 500 kW."]
[null,null,null,null,"Hemos utilizado la cifra baja de 350 kW pero a pesar de esta minimización de la potencia ( y por lo tanto del consumo en kWh), el motor sigue"]
[null,null,null,null,"siendo menos limpio (en emisión de CO2) que el motor diesel porque en Mexico, la huella de la electricidad CFE es muy alta (0.494 kg CO2/kWh)."]
[null,null,null,null,"´También se cree que seria igual que en Europa pero allá la huella de la electricidad varia entre 0.75 (Francia) y 0,25 (Alemania) solamente."]
[null,null,null,null,"En Europa se favorece el chasis eléctrico porque todos los concretos utilizan un mezclador central y el problema del diesel (y gas) es que "]
[null,null,null,null,"emiten otras párticulos directamente dañinas (el CO2 solo tiene un efecto muy indirecto sobre el hombre) para la salud del hombre; gas tóxicos (Nox), "]
[null,null,null,null,"particulas finas etc., las cuales SI hay que tomar en cuenta en una analisis LCA completa."]
[null,null,null,null,null,null,null,null,null," "]
[]
[null,null,null,null,"SISTEMA AMASADO","SOPORTE SISTEMA","ENERGIA","           TIPO DE EMISION"]
[null,null,null,null,null,"DEL MEZCLADO","UTILIZADA","DIRECTA","HUELLA"]
[null,null,null,null,null,null,null,"Diesel o gas","Electricidad"]
[null,null,null,null,"Revolvedora normal","Chasis diesel ","Diesel chasis","Directa"]
[null,null,null,null,"Revolvedora normal","Chasis gas","Gas  chasis","Directa"]
[null,null,null,null,"Revolvedora normal","Chasis eléctrico","Electricidad chasis eléctrico",null,"Huella"]
[null,null,null,null,"Revolvedora eléctrica Hybrid","Chasis diesel ","Electricidad chasis diesel","Directa"]
[null,null,null,null,"Revolvedora eléctrica Plug-in","Chasis diesel ","Electricidad CFE",null,"Huella"]
[null,null,null,null,"Revolvedora eléctrica Hydrid","Chasis gas","Electricidad chasis gas","Directa"]
[null,null,null,null,"Revolvedora eléctrica Plug-in","Chasis gas","Electricidad CFE",null,"Huella"]
[null,null,null,null,"Revolvedora eléctrica Hybrid","Chasis eléctrico","Electricidad chasis eléctrico",null,"Huella"]
[null,null,null,null,"Revolvedora eléctrica Plug-in","Chasis eléctrico","Electricidad CFE",null,"Huella"]
[null,null,null,null,"Revolvedora Tilt","Planta dosificadora","Electricidad CFE",null,"Huella"]
[null,null,null,null,"Mezclador Twin-shaft Otros","Planta mezclador central","Electricidad CFE",null,"Huella"]
[null,null,null,null,"Mezclador Twin-shaft LIEBHERR","Planta mezclador central","Electricidad CFE",null,"Huella"]
[null,null,null,null,"Mezclador Ring-pan LIEBHERR","Planta mezclador central","Electricidad CFE",null,"Huella"]

{"sheet":"Consumo Cemento","index":5,"n_rows":50,"n_cols":11,"rows_kept":50,"cut":false,"hidden":true,"merged":[]}
[]
[null,null,null,null,"ESTUDIO ECOLOGIA : CICLO DE VIDA DE LA PLANTA DE CONCRETO."]
[null,null,null,null,"1. CO2 DURANTE EL MEZCLADO."]
[null,null,null,null,"1.2. CEMENTO : 1.2.2. Huella CO2 según el sistema de amasado."]
[null,null,null,null,"La huella del cemento es muy alta y solo se puede bajar utilizando un Mezclador Central."]
[null,null,null,null,"Creado Colima, EQUIPO FRANCES SA DE CV, Abr. 9 2022. Actualizado Abr. 11 2022."]
[]
[null,null,null,null,"Parámetros fijos : un solo concreto con 300 kg cemento/m3 (30 MPa), duración mezclado."]
[null,null,null,"Duración","SISTEMA AMASADO","SOPORTE SISTEMA","ENERGIA","FACTOR","Ejemplo m3","Ejemplo m3","Mejora del"]
[null,null,null,"mezclado",null,"DEL MEZCLADO","UTILIZADA","EMISION","concreto =","concreto =","mezclado "]
[null,null,null,null,null,null,null,"Kg CO2/m3 ",10000,50000,"central"]
[null,null,null,"7 min","Revolvedora normal","Chasis diesel ","Diesel chasis",217.7,{"$f":"+H12*$I$11","v":2177000},{"$f":"+H12*$J$11","v":10885000}]
[null,null,null,"7 min","Revolvedora normal","Chasis gas","Gas  chasis",{"$f":"+H12","v":217.7},{"$f":"+H13*$I$11","v":2177000},{"$f":"+H13*$J$11","v":10885000}]
[null,null,null,"7 min","Revolvedora normal","Chasis eléctrico","Electricidad chasis eléctrico",{"$f":"+H12","v":217.7},2177000,10885000]
[null,null,null,"7 min","Revolvedora eléctrica Hybrid","Chasis diesel ","Electricidad chasis diesel",217.7,2177000,10885000]
[null,null,null,"7 min","Revolvedora eléctrica Plug-in","Chasis diesel ","Electricidad CFE",{"$f":"+H12","v":217.7},2177000,10885000]
[null,null,null,"7 min","Revolvedora eléctrica Hydrid","Chasis gas","Electricidad chasis gas",{"$f":"+H12","v":217.7},2177000,10885000]
[null,null,null,"7 min","Revolvedora eléctrica Plug-in","Chasis gas","Electricidad CFE",{"$f":"+H12","v":217.7},2177000,10885000]
[null,null,null,"7 min","Revolvedora eléctrica Hybrid","Chasis eléctrico","Electricidad chasis eléctrico",{"$f":"+H12","v":217.7},2177000,10885000]
[null,null,null,"7 min","Revolvedora eléctrica Plug-in","Chasis eléctrico","Electricidad CFE",{"$f":"+H12","v":217.7},2177000,10885000]
[null,null,null,"5 min","Revolvedora Tilt","Planta dosificadora","Electricidad CFE",213.346,2133460,10667300]
[null,null,null,"1 min","Mezclador Twin-shaft Otros","Planta mezclador central","Electricidad CFE",187.00399999999999,1870040,9350200,{"$f":"+($H$12-H22)/$H$12","v":0.14100137804317869}]
[null,null,null,"0.95 min","Mezclador Twin-shaft LIEBHERR","Planta mezclador central","Electricidad CFE",187.00399999999999,1870040,9350200,{"$f":"+($H$12-H23)/$H$12","v":0.14100137804317869}]
[null,null,null,"0.95 min","Mezclador Ring-pan LIEBHERR","Planta mezclador central","Electricidad CFE",177.654,1776540,8882700,0.18395039044556727]
[]
[null,null,null,null,"Hay cuatro categorias de equipo de amasado :"]
[null,null,null,null,null,null,"Intensidad de la huella","Explicación : Ver Estudio Mezclado Central."]
[null,null,null,null,"Revolvedora normal o eléctrica",null,"MUY ALTA","Desperdicio de 25-35% de cemento no hidratado."]
[null,null,null,null,"Revolvedora Tilt",null,"MUY ALTA","Mejora de solo 22 a 3 % la hidratación."]
[null,null,null,null,"Mezclador Twin-shaft Otros o LIEBHERR",null,"MAS BAJA PERO ALTA","Mejora de 10 a 15% la activación del cemento."]
[null,null,null,null,"Mezclador Ring-pan LIEBHERR",null,"MAS BAJA SIGNIFICATIVO","La activicación del cemento se acerca a 90-100%."]
[]
[null,null,null,null,"Que significa factor de emisión del cemento; en este caso huella* para la planta de concreto ?"]
[null,null,null,null,"* No es una emisión directa hecha en la planta de concreto."]
[null,null,null,null,"Se ha utilizada la cifra mediana del cemento producido y consumido en México de 622 kg CO2 por tonelada."]
[null,null,null,null,"de cemento producido; es una hipotesis relativamente baja."]
[null,null,null,null,"Esta cifra puede depender de la marca del cemento."]
[null,null,null," "," "," "," "," "]
[null,null,null," ","Porque el cemento tiene una huella tan alta de CO2 ?"]
[null,null,null," ","Ver Libro Estudio Mezclado Central Parte 1.1. Cemento.",null,null," "]
[null,null,null,null,"Primero se utiliza CaCO3 para exraer el Calcio asi liberando CO2 en la reacción química."]
[null,null,null,null,"Segundo se tiene que calentar la mezcla con arcilla a más de 1,400 °C, en el caso de "]
[null,null,null,null,"México se utiliza en gran mayorio la energia carbonada; petroleo, gas y carbon."]
[null,null,null,null,null,null,null," "]
[null,null,null,null,null,null,null," "]
[null,null,null,null,null,null,null," "]
[null,null,null,null,null,null,null," "]
[null,null,null,null,null,null,null,"  "]
[]
[null,null,null,null,null,null,null," "]